{"text_format":"1","workbook":"xlsx","n_sheets":4,"sheets":["Raiz","Hoja1","Hoja2","Hoja3"],"not_rendered":{"charts":0,"images":1,"macros":1,"external_links":0,"defined_names":1,"comments":0,"pivot_tables":0},"unopened":[],"bounds":{"document_bytes":16777216,"sheet_cells":100000,"rows_first":2000,"rows_last":500,"rows_between":2000,"halvings":0,"cell_chars":16384,"cell_head_chars":4096},"cells_cut":0,"cells_raw":0,"read":"whole","date_system":"1900"}

{"sheet":"Raiz","index":0,"n_rows":78,"n_cols":35,"rows_kept":78,"cut":false,"hidden":false,"merged":[[5,6,5,9],[1,1,1,12],[68,17,68,18],[69,18,69,19],[76,17,76,18],[12,1,12,2],[20,17,20,18],[13,2,13,3],[21,18,21,19],[28,17,28,18],[29,18,29,19],[36,17,36,18],[37,18,37,19],[45,18,45,19],[44,17,44,18],[12,17,12,18],[13,18,13,19],[6,8,6,9],[77,18,77,19],[52,17,52,18],[53,18,53,19],[60,17,60,18],[61,18,61,19]]}
[]
[null,"Cálculo de raices cuadradas de 6 cifras sin decimales"]
[]
[null,"Matemáticas:",null,null,null,"6º primaria",null,null,null,null,null,null,"Santiago García Samartín"]
[]
["Obtener la raíz cuadrada de:",null,null,null,null,null,633212]
["Se han realizado correctamente:"]
[null,null,null,null,null,null,null,null,null,null,null,null,null,null,null,null,"Dígitos a borrar"]
[null,null,null,null,null,null,null,null,null,null,null,null,"Instrucciones"]
[null,null,null,null,null,null,null,null,null,null,null,null,{"$f":"LOOKUP(AE27,$AG$20:$AG$25, $AH$20:$AH$25)","v":"Descomponer en grupos de 2, empezando por la derecha de la raíz"},null,null,null,null,1,1,1]
[null,null,null,null,null,null,null,"x",null,"=",null,null,{"$f":"LOOKUP($AE$29,$AG$31:$AG$53, $AH$31:$AH$53)","v":"Escribir el grupo de la derecha"},null,null,null,null,1,1,1,null,null,1,null,1,null,1]
[null,null,null,null,null,null,null,"x",null,"=",null,null,null,null,null,null,null,1,1,null,null,1,1,null,1,null,1]
[null,null,null,null,null,null,null,"x",null,"=",null,null,"Errores",null,null,null,null,1,null,1,null,1,1,null,1,null,1]
[null,null,null,null,null,null,null,null,null,null,null,null,{"$f":"IF(COUNTIF($AF$31:$AF$53,\"=1\") <= 0,\"\",INDEX($AJ$24:$AJ$46,MATCH(1,AF$31:AF$53, 0),4))","v":""},null,null,null,null,null,1]
[]
[null,null,null,null,null,null,null,null,null,null,null,null,null,null,null,null,{"$f":"G6","v":633212}]
[]
[null,null,null,null,null,null,null,null,null,null,null,null,null,null,null,null,null,{"$f":"W19","v":7},{"$f":"W20","v":9},{"$f":"W21","v":5},null,null,null,null,null,null,null,null,null,{"$f":"R18&S18","v":"79"}]
[null,null,null,null,null,null,null,null,null,null,null,null,null,null,null,null,null,{"$f":"1*MID(Q16,  LEN(Q16)-5,2)","v":63},{"$f":"1*MID(Q16,  LEN(Q16)-3,2)","v":32},{"$f":"1*RIGHT(Q16,2)","v":12},null,null,{"$f":"INT(SQRT(R19))","v":7},"x",{"$f":"W19","v":7},"=",{"$f":"W19*Y19","v":49},null,null,null,null,null,"Mensajes de nivel 1"]
[null,null,null,null,null,null,null,null,null,null,null,null,null,null,null,null,null,{"$f":"R19-AA19","v":14},{"$f":"S19","v":32},null,null,{"$f":"2*R18","v":14},{"$f":"INT(-R18*10+SQRT(R19&TEXT(S19,\"00\")))","v":9},"x",{"$f":"W20","v":9},"=",{"$f":"(V20&W20)*Y20","v":1341},null,null,null,null,null,0," "]
[null,null,null,null,null,null,null,null,null,null,null,null,null,null,null,null,null,{"$f":"(R20&TEXT(S20,\"00\"))-AA20","v":91},null,{"$f":"T19","v":12},null,{"$f":"2*AD18","v":158},{"$f":"INT(-AD18*10+SQRT(R19&TEXT(S19,\"00\")&TEXT(T19,\"00\")))","v":5},"x",{"$f":"W21","v":5},"=",{"$f":"(V21&W21)*Y21","v":7925},null,null,null,null,null,1,"Descomponer en grupos de 2, empezando por la derecha de la raíz"]
[null,null,null,null,null,null,null,null,null,null,null,null,null,null,null,null,null,null,{"$f":"(R21&TEXT(T21,\"00\"))-AA21","v":1187},null,null,{"$f":"(R18&S18&T18)^2 + S22","v":633212},null,null,null,null,null,null,null,null,null,null,2,"Obtener el primer dígito de la raíz"]
[null,null,null,null,null,null,null,null,null,null,null,null,null,null,null,null,null,null,null,null,null,null,null,null,null,null,null,null,null,null,null,null,3,"Obtener el segúndo dígito de la raiz"]
[null,null,null,null,null,null,null,null,null,null,null,null,null,null,null,null,"Errorres",null,null,null,null,null,null,null,null,null,null,null,null,null,null,null,4,"Obtener el  tercer dígito de la raiz"]
[null,null,null,null,null,null,null,null,null,null,null,null,null,null,null,null,null,null,null,null,null,null,null,null,null,null,null,null,null,null,null,null,5,"Enhorabuena. Lo has conseguido"]
[null,null,null,null,null,null,null,null,null,null,null,null,null,null,null,null,null,{"$f":"IF(B10=\"\",-1,IF(R18=B10,0,1))","v":-1},-1,-1,null,null,null,null,null,null,null,null,null,null,"Primer nivel"]
[null,null,null,null,null,null,null,null,null,null,null,null,null,null,null,null,null,-1,-1,-1,null,null,{"$f":"IF(G11=\"\",-1,IF(W19=G11,0,1))","v":-1},"x",{"$f":"IF(I11=\"\",-1,IF(Y19=I11,0,1))","v":-1},"=",{"$f":"IF(K11=\"\",-1,IF(AA19=K11,0,1))","v":-1},null,null,null,{"$f":"R42*R58+S42*S58+T42*T58+R43*R59+S43*S59+T43*T59+R44*R60+S44*S60+R45*R61+T45*T61+S46*S62+W43*W59+Y43*Y59+AA43*AA59+V44*V60+W44*W60+Y44*Y60+AA44*AA60+V45*V61+W45*W61+Y45*Y61+AA45*AA61+V46*V62","v":1}]
[null,null,null,null,null,null,null,null,null,null,null,null,null,null,null,null,null,{"$f":"IF(B12=\"\",-1,IF(R20=B12,0,1))","v":-1},{"$f":"IF(C12=\"\",-1,IF(S20=C12,0,1))","v":-1},null,null,{"$f":"IF(F12=\"\",-1,IF(V20=F12,0,1))","v":-1},{"$f":"IF(G12=\"\",-1,IF(W20=G12,0,1))","v":-1},"x",{"$f":"IF(I12=\"\",-1,IF(Y20=I12,0,1))","v":-1},"=",{"$f":"IF(K12=\"\",-1,IF(AA20=K12,0,1))","v":-1},null,null,null,"Paso siguiente"]
[null,null,null,null,null,null,null,null,null,null,null,null,null,null,null,null,null,{"$f":"IF(B13=\"\",-1,IF(R21=B13,0,1))","v":-1},null,{"$f":"IF(D13=\"\",-1,IF(T21=D13,0,1))","v":-1},null,{"$f":"IF(F13=\"\",-1,IF(V21=F13,0,1))","v":-1},{"$f":"IF(G13=\"\",-1,IF(W21=G13,0,1))","v":-1},"x",{"$f":"IF(I13=\"\",-1,IF(Y21=I13,0,1))","v":-1},"=",{"$f":"IF(K13=\"\",-1,IF(AA21=K13,0,1))","v":-1},null,null,null,{"$f":"SUM(AE31:AE53)+1","v":1},null,null,null,"Errores asociados"]
[null,null,null,null,null,null,null,null,null,null,null,null,null,null,null,null,null,null,{"$f":"IF(C14=\"\",-1,IF(S22=C14,0,1))","v":-1},null,null,null,null,null,null,null,null,null,null,null,"hecho","correcto","Mensajes de nivel 2"]
[null,null,null,null,null,null,null,null,null,null,null,null,null,null,null,null,null,null,null,null,null,null,null,null,null,null,null,null,null,null,{"$f":"T35","v":0},{"$f":"T27","v":-1},1,"Escribir el grupo de la derecha","El número del grupo de la derecha es incorrecto"]
[null,null,null,null,null,null,null,null,null,null,null,null,null,null,null,null,"Niveles recorridos",null,null,null,null,null,null,null,null,null,null,null,null,null,{"$f":"S35","v":0},{"$f":"S27","v":-1},2,"Escribir el grupo del medio","El número del grupo central es incorrecto"]
[null,null,null,null,null,null,null,null,null,null,null,null,null,null,null,null,null,null,null,null,null,null,null,null,null,null,null,null,null,null,{"$f":"R35","v":0},{"$f":"R27","v":-1},3,"Escribir el grupo de la izquierda","El número del grupo de la izquierda es incorrecto"]
[null,null,null,null,null,null,null,null,null,null,null,null,null,null,null,null,null,{"$f":"IF(R26=0,1,0)","v":0},0,0,null,null,null,null,null,null,null,null,null,null,{"$f":"W35","v":0},{"$f":"W27","v":-1},4,"Buscar la raíz inferior más cercana al grupo marcado con fondo verde",{"$f":"IF(G11<W19,\"Puede utilizarse un número mayor \",\"El número elegido se pasará tras la multiplicación \")","v":"Puede utilizarse un número mayor "}]
[null,null,null,null,null,null,null,null,null,null,null,null,null,null,null,null,null,{"$f":"IF(R27=0,1,0)","v":0},0,{"$f":"IF(T27=0,1,0)","v":0},null,null,{"$f":"IF(W27=0,1,0)","v":0},"x",{"$f":"IF(Y27=0,1,0)","v":0},"=",{"$f":"IF(AA27=0,1,0)","v":0},null,null,null,{"$f":"Y35","v":0},{"$f":"Y27","v":-1},5,"Escribir el mismo número que el último dígito del multiplicando anterior","El número no coincide"]
[null,null,null,null,null,null,null,null,null,null,null,null,null,null,null,null,null,{"$f":"IF(R28=0,1,0)","v":0},{"$f":"IF(S28=0,1,0)","v":0},null,null,{"$f":"IF(V28=0,1,0)","v":0},{"$f":"IF(W28=0,1,0)","v":0},"x",{"$f":"IF(Y28=0,1,0)","v":0},"=",{"$f":"IF(AA28=0,1,0)","v":0},null,null,null,{"$f":"AA35","v":0},{"$f":"AA27","v":-1},6,"Realizar la multiplicación","La multiplicación no esta bien realizada"]
[null,null,null,null,null,null,null,null,null,null,null,null,null,null,null,null,null,{"$f":"IF(R29=0,1,0)","v":0},null,{"$f":"IF(T29=0,1,0)","v":0},null,{"$f":"IF(V29=0,1,0)","v":0},{"$f":"IF(W29=0,1,0)","v":0},"x",{"$f":"IF(Y29=0,1,0)","v":0},"=",{"$f":"IF(AA29=0,1,0)","v":0},null,null,null,{"$f":"R36","v":0},{"$f":"R28","v":-1},7,"Calcular el resto entre el número superior (verde) y la multiplicación (azul)","La resta no es correcta"]
[null,null,null,null,null,null,null,null,null,null,null,null,null,null,null,null,null,null,{"$f":"IF(S30=0,1,0)","v":0},null,null,null,null,null,null,null,null,null,null,null,{"$f":"R34","v":0},{"$f":"R26","v":-1},8,"Guardar el primer dígito de la raíz (en verde)","El número no coincide"]
[null,null,null,null,null,null,null,null,null,null,null,null,null,null,null,null,null,null,null,null,null,null,null,null,null,null,null,null,null,null,{"$f":"S36","v":0},{"$f":"S28","v":-1},9,"Bajar el siguiente grupo de 2 números (en verde)","El número no coincide"]
[null,null,null,null,null,null,null,null,null,null,null,null,null,null,null,null,"Mensajes de nivel 1",null,null,null,null,null,null,null,null,null,null,null,null,null,{"$f":"V36","v":0},{"$f":"V28","v":-1},10,"Poner el doble de la parte ya resuelta de la raíz (verde)",{"$f":"\"No se ha puesto el doble de \" & B10","v":"No se ha puesto el doble de "}]
[null,null,null,null,null,null,null,null,null,null,null,null,null,null,null,null,null,null,null,null,null,null,null,null,null,null,null,null,null,null,{"$f":"W36","v":0},{"$f":"W28","v":-1},11,{"$f":"\"Buscar el mayor número 'a' de 1 a 9 tal que \" & F12 & \"a x a < \" & B12 & C12 & \" (en verde)\"","v":"Buscar el mayor número 'a' de 1 a 9 tal que a x a <  (en verde)"},{"$f":"IF(G12>9, \"El número debe ser menor de 9\", IF(G12<1,\"El número deber ser al menos 1\", IF(G12<W20, \"Puede ser un número mayor\", IF(G12>W20, \"Con este te vas a pasar\",0))))","v":"El número deber ser al menos 1"}]
[null,null,null,null,null,null,null,null,null,null,null,null,null,null,null,null,null,2,3,4,null,null,null,null,null,null,null,null,null,null,{"$f":"Y36","v":0},{"$f":"Y28","v":-1},12,"Escribir el mismo número que el último dígito del multiplicando anterior","El número no coincide"]
[null,null,null,null,null,null,null,null,null,null,null,null,null,null,null,null,null,1,1,1,null,null,2,"x",2,"=",2,null,null,null,{"$f":"AA36","v":0},{"$f":"AA28","v":-1},13,"Realizar la multiplicación","La multiplicación no esta bien realizada"]
[null,null,null,null,null,null,null,null,null,null,null,null,null,null,null,null,null,2,3,null,null,3,3,"x",3,"=",3,null,null,null,{"$f":"R37","v":0},{"$f":"R29","v":-1},14,"Calcular el resto entre el número superior (verde) y la multiplicación (azul)","La resta no es correcta"]
[null,null,null,null,null,null,null,null,null,null,null,null,null,null,null,null,null,3,null,4,null,4,4,"x",4,"=",4,null,null,null,{"$f":"S34","v":0},{"$f":"S26","v":-1},15,"Guardar el segundo dígito de la raíz (en verde)","El número no coincide"]
[null,null,null,null,null,null,null,null,null,null,null,null,null,null,null,null,null,null,4,null,null,5,null,null,null,null,null,null,null,null,{"$f":"T37","v":0},{"$f":"T29","v":-1},16,"Bajar el siguiente grupo de 2 números","El número no coincide"]
[null,null,null,null,null,null,null,null,null,null,null,null,null,null,null,null,null,null,null,null,null,null,null,null,null,null,null,null,null,null,{"$f":"V37","v":0},{"$f":"V29","v":-1},17,"Poner el doble de la parte ya resuelta de la raíz (verde)",{"$f":"\"No se ha puesto el doble de \" & B10 & C10","v":"No se ha puesto el doble de "}]
[null,null,null,null,null,null,null,null,null,null,null,null,null,null,null,null,"Mensajes de nivel 2 (Pasos a realizar)",null,null,null,null,null,null,null,null,null,null,null,null,null,{"$f":"W37","v":0},{"$f":"W29","v":-1},18,{"$f":"\"Buscar el mayor número 'a' de 1 a 9 tal que \" & F13 & \"a x a < \" & B13 & D13 & \" (en verde)\"","v":"Buscar el mayor número 'a' de 1 a 9 tal que a x a <  (en verde)"},{"$f":"IF(G13>9, \"El número debe ser menor de 9\", IF(G13<1,\"El número deber ser al menos 1\", IF(G13<W21, \"Puede ser un número mayor\", IF(G13>W21, \"Con este te vas a pasar\",0))))","v":"El número deber ser al menos 1"}]
[null,null,null,null,null,null,null,null,null,null,null,null,null,null,null,null,null,null,null,null,null,null,null,null,null,null,null,null,null,null,{"$f":"Y37","v":0},{"$f":"Y29","v":-1},19,"Escribir el mismo número que el último dígito del multiplicando anterior","El número no coincide"]
[null,null,null,null,null,null,null,null,null,null,null,null,null,null,null,null,null,8,15,22,null,null,null,null,null,null,null,null,null,null,{"$f":"AA37","v":0},{"$f":"AA29","v":-1},20,"Realizar la multiplicación","La multiplicación no esta bien realizada"]
[null,null,null,null,null,null,null,null,null,null,null,null,null,null,null,null,null,3,2,1,null,null,4,"x",5,"=",6,null,null,null,{"$f":"S38","v":0},{"$f":"S30","v":-1},21,"Calcular el resto entre el número superior (verde) y la multiplicación (azul)","La resta no es correcta"]
[null,null,null,null,null,null,null,null,null,null,null,null,null,null,null,null,null,7,9,null,null,10,11,"x",12,"=",13,null,null,null,{"$f":"T34","v":0},{"$f":"T26","v":-1},22,"Guardar el tercer dígito de la raíz (en verde)","El número no coincide"]
[null,null,null,null,null,null,null,null,null,null,null,null,null,null,null,null,null,14,null,16,null,17,18,"x",19,"=",20,null,null,null,{"$f":"IF(SUM(AE31:AE52)=22,1,0)","v":0},0,23,{"$f":"\"El resultado es \" &G6 & \"=\" &B10&C10&D10& \"^2+\" &C14","v":"El resultado es 633212=^2+"}]
[null,null,null,null,null,null,null,null,null,null,null,null,null,null,null,null,null,null,21]
[]
[null,null,null,null,null,null,null,null,null,null,null,null,null,null,null,null,"Fondo amarillo"]
[]
[null,null,null,null,null,null,null,null,null,null,null,null,null,null,null,null,null,{"$f":"IF(R50=$AE$29,1,0)","v":0},0,0]
[null,null,null,null,null,null,null,null,null,null,null,null,null,null,null,null,null,0,0,1,null,null,{"$f":"IF(W51=$AE$29,1,0)","v":0},"x",{"$f":"IF(Y51=$AE$29,1,0)","v":0},"=",{"$f":"IF(AA51=$AE$29,1,0)","v":0}]
[null,null,null,null,null,null,null,null,null,null,null,null,null,null,null,null,null,{"$f":"IF(R52=$AE$29,1,0)","v":0},{"$f":"IF(S52=$AE$29,1,0)","v":0},null,null,{"$f":"IF(V52=$AE$29,1,0)","v":0},{"$f":"IF(W52=$AE$29,1,0)","v":0},"x",{"$f":"IF(Y52=$AE$29,1,0)","v":0},"=",{"$f":"IF(AA52=$AE$29,1,0)","v":0}]
[null,null,null,null,null,null,null,null,null,null,null,null,null,null,null,null,null,{"$f":"IF(R53=$AE$29,1,0)","v":0},null,{"$f":"IF(T53=$AE$29,1,0)","v":0},null,{"$f":"IF(V53=$AE$29,1,0)","v":0},{"$f":"IF(W53=$AE$29,1,0)","v":0},"x",{"$f":"IF(Y53=$AE$29,1,0)","v":0},"=",{"$f":"IF(AA53=$AE$29,1,0)","v":0}]
[null,null,null,null,null,null,null,null,null,null,null,null,null,null,null,null,null,null,{"$f":"IF(S54=$AE$29,1,0)","v":0},null,null,{"$f":"IF(ISNUMBER((B10&C10&D10)^2 + C14), IF((B10&C10&D10)^2 + C14=G6,1,0), 0)","v":0}]
[]
[null,null,null,null,null,null,null,null,null,null,null,null,null,null,null,null,"Fondo verde"]
[]
[null,null,null,null,null,null,null,null,null,null,null,null,null,null,null,null,null,{"$f":"V60+V61","v":0},{"$f":"V61","v":0},0]
[null,null,null,null,null,null,null,null,null,null,null,null,null,null,null,null,null,{"$f":"W59+R60","v":0},{"$f":"S60","v":0},{"$f":"T61","v":0},null,null,{"$f":"R58","v":0},"x",0,"=",0]
[null,null,null,null,null,null,null,null,null,null,null,null,null,null,null,null,null,{"$f":"R61+W60","v":0},{"$f":"R61+W60","v":0},null,null,0,{"$f":"S58","v":0},"x",0,"=",0]
[null,null,null,null,null,null,null,null,null,null,null,null,null,null,null,null,null,{"$f":"W61+S62","v":0},null,{"$f":"W61+S62","v":0},null,0,{"$f":"T58","v":0},"x",0,"=",0]
[null,null,null,null,null,null,null,null,null,null,null,null,null,null,null,null,null,null,0]
[]
[null,null,null,null,null,null,null,null,null,null,null,null,null,null,null,null,"Fondo azul"]
[]
[null,null,null,null,null,null,null,null,null,null,null,null,null,null,null,null,null,0,0,0]
[null,null,null,null,null,null,null,null,null,null,null,null,null,null,null,null,null,0,0,0,null,null,0,"x",0,"=",{"$f":"R60","v":0}]
[null,null,null,null,null,null,null,null,null,null,null,null,null,null,null,null,null,0,0,null,null,{"$f":"IF(V68=$AE$29,1,0)","v":0},0,"x",0,"=",{"$f":"R61","v":0}]
[null,null,null,null,null,null,null,null,null,null,null,null,null,null,null,null,null,0,null,0,null,{"$f":"IF(V69=$AE$29,1,0)","v":0},0,"x",0,"=",{"$f":"S62","v":0}]
[null,null,null,null,null,null,null,null,null,null,null,null,null,null,null,null,null,null,0]

{"sheet":"Hoja1","index":1,"n_rows":25,"n_cols":36,"rows_kept":25,"cut":false,"hidden":false,"merged":[[21,19,21,20],[22,19,22,21],[23,20,23,21],[12,19,12,20],[12,1,12,2],[13,20,13,21],[13,2,13,3]]}
[]
[]
[]
[]
[]
[null,null,null,null,null,null,null,null,null,null,null,null,null,null,null,null,null,null,null,null,null,null,null,null,null,null,null,null,null,null,null,null,null,null,0," "]
["Obtener la raíz cuadrada de:",null,null,null,null,null,null,null,null,null,null,null,null,null,null,null,null,null,null,null,null,null,null,null,null,null,null,null,null,null,null,null,null,null,1,"Descomponer en grupos de 2, empezando por la derecha de la raíz"]
[987654,null,null,null,null,null,null,null,null,null,null,null,null,null,null,null,null,null,{"$f":"A8","v":987654},null,null,null,null,null,null,null,null,null,null,null,null,null,null,null,2,"Escribir el grupo de la izquierda"]
[null,null,null,null,null,null,null,null,null,null,null,null,null,"Instrucciones",null,null,null,null,null,null,null,null,null,null,null,null,null,null,null,null,null,null,null,null,3,"Escribir el grupo del medio"]
[null,9,null,null,null,null,null,null,null,null,null,null,null,{"$f":"IF(AND(A8<>\"\",OR(B11=\"\",C11=\"\",D11=\"\")),1,IF(AND(G11=\"\",B11=T11,C11=U11,D11=V11),AI11, IF(AND(I11=\"\",G11<>\"\"),AI12,  IF(AND(K11=\"\",I11<>\"\"),AI13,  IF(AND(B10=\"\",K11<>\"\"),AI14, IF(AND(B12=\"\",B10<>\"\"),AI15,  IF(AND(C12=\"\",B12<>\"\"), AI16,  IF(AND(F12=\"\",C12<>\"\"),AI17,  IF(AND(G12=\"\",F12<>\"\"),AI18)))))))))","v":10},{"$f":"LOOKUP(N10,$AI$6:$AI$25, $AJ$6:$AJ$25)","v":"Bajar el siguiente grupo de 2 números"},null,null,null,null,{"$f":"Y11","v":9},{"$f":"Y12","v":9},{"$f":"Y13","v":3},null,null,null,null,null,null,null,null,null,{"$f":"T10&U10","v":"99"},null,null,4,"Escribir el grupo de la derecha"]
[null,98,76,54,null,null,9,"x",9,"x",81,null,null,{"$f":"IF(N10=1, IF(B11=\"\",AI8, IF(C11=\"\",AI9, IF(D11=\"\",AI10,0))), 0)","v":0},{"$f":"LOOKUP(N11,$AI$6:$AI$25, $AJ$6:$AJ$25)","v":" "},null,null,null,null,{"$f":"1*MID(S8,  LEN(S8)-5,2)","v":98},{"$f":"1*MID(S8,  LEN(S8)-3,2)","v":76},{"$f":"1*RIGHT(S8,2)","v":54},null,null,{"$f":"INT(SQRT(T11))","v":9},"x",{"$f":"Y11","v":9},"=",{"$f":"Y11*AA11","v":81},null,null,null,null,null,5,"Buscar la raíz inferior más cercana al grupo marcado con fondo verde"]
[null,17,null,null,null,null,null,null,null,null,null,null,null,null,null,null,null,null,null,{"$f":"T11-AC11","v":17},{"$f":"U11","v":76},null,null,{"$f":"2*T10","v":18},{"$f":"INT(-T10*10+SQRT(T11&U11))","v":9},"x",{"$f":"Y12","v":9},"=",{"$f":"(X12&Y12)*AA12","v":1701},null,null,null,null,null,6,"Escribir el mismo número que el último dígito del multiplicando anterior"]
[null,null,null,null,null,null,null,null,null,null,null,null,null,null,null,null,null,null,null,{"$f":"(T12&U12)-AC12","v":75},null,{"$f":"V11","v":54},null,{"$f":"2*AF10","v":198},{"$f":"INT(-AF10*10+SQRT(T11&U11&V11))","v":3},"x",{"$f":"Y13","v":3},"=",{"$f":"(X13&Y13)*AA13","v":5949},null,null,null,null,null,7,"Realizar la multiplicación"]
[null,null,null,null,null,null,null,null,null,null,null,null,null,null,null,null,null,null,null,null,{"$f":"(T13&V13)-AC13","v":1605},null,null,null,null,null,null,null,null,null,null,null,null,null,8,"Guardar el primer dígito de la raíz"]
[null,null,null,null,null,null,null,null,null,null,null,null,null,null,null,null,null,null,null,null,null,null,null,null,null,null,null,null,null,null,null,null,null,null,9,"Calcular el resto entre el número superior (verde) y la multiplicación (azul)"]
[null,null,null,null,null,null,null,null,null,null,null,null,null,null,null,null,null,null,null,null,null,null,null,null,null,null,null,null,null,null,null,null,null,null,10,"Bajar el siguiente grupo de 2 números"]
[null,null,null,null,null,null,null,null,null,null,null,null,null,null,null,null,null,null,null,null,null,null,null,null,null,null,null,null,null,null,null,null,null,null,11,"Poner el doble de la parte ya resuelta de la raíz (verde)"]
[null,null,null,null,null,null,null,null,null,null,null,null,null,null,null,null,null,null,{"$f":"S8","v":987654},null,null,null,null,null,null,null,null,null,null,null,null,null,null,null,12,{"$f":"\"Buscar el mayor número 'a' de 1 a 9 tal que \" & F12 & \"a x a < \" & B12 & C12","v":"Buscar el mayor número 'a' de 1 a 9 tal que a x a < 17"}]
[null,null,null,null,null,null,null,null,null,null,null,null,null,null,null,null,null,null,null,null,null,null,null,null,null,null,null,null,null,null,null,null,null,null,13,"Escribir el mismo número que el último dígito del multiplicando anterior"]
[null,null,null,null,null,null,null,null,null,null,null,null,null,null,null,null,null,null,null,{"$f":"X21","v":9},{"$f":"AE22","v":9},{"$f":"AE23","v":3},null,null,null,null,null,null,null,null,{"$f":"T20&U20","v":"99"},null,null,null,14,"Realizar la multiplicación"]
[null,null,null,null,null,null,null,null,null,null,null,null,null,null,null,null,null,null,null,{"$f":"1*MID(S18,  LEN(S18)-5,2)","v":98},{"$f":"1*MID(S18,  LEN(S18)-3,2)","v":76},{"$f":"1*RIGHT(S18,2)","v":54},null,{"$f":"INT(SQRT(T21))","v":9},"x",{"$f":"X21","v":9},"=",{"$f":"X21*Z21","v":81},null,null,null,null,null,null,15,"Guardar el segundo dígito de la raíz"]
[null,null,null,null,null,null,null,null,null,null,null,null,null,null,null,null,null,null,null,{"$f":"1*(T21-AB21&U21)","v":1776},null,null,null,{"$f":"2*T20&AE22","v":"189"},"x",{"$f":"AE22","v":9},"=",{"$f":"X22*Z22","v":1701},null,null,{"$f":"INT(-T20*10+SQRT(T21&U21))","v":9},null,null,null,16,"Calcular el resto entre el número superior (verde) y la multiplicación (azul)"]
[null,null,null,null,null,null,null,null,null,null,null,null,null,null,null,null,null,null,null,{"$f":"T22-AB22&V21","v":"7554"},null,null,null,{"$f":"2*AE20&AE23","v":"1983"},"x",{"$f":"AE23","v":3},"=",{"$f":"X23*Z23","v":5949},null,null,{"$f":"INT(-AE20*10+SQRT(T21&U21&V21))","v":3},null,null,null,17,"Bajar el siguiente grupo de 2 números"]
[null,null,null,null,null,null,null,null,null,null,null,null,null,null,null,null,null,null,null,null,{"$f":"T23-AB23","v":1605},null,null,null,null,null,null,null,null,null,null,null,null,null,18,"Poner el doble de la parte ya resuelta de la raíz (verde)"]
[null,null,null,null,null,null,null,null,null,null,null,null,null,null,null,null,null,null,null,null,null,null,null,null,null,null,null,null,null,null,null,null,null,null,19,{"$f":"\"Buscar el mayor número 'a' de 1 a 9 tal que \" & F13 & \"a x a < \" & B13 & D13","v":"Buscar el mayor número 'a' de 1 a 9 tal que a x a < "}]

{"sheet":"Hoja2","index":2,"n_rows":0,"n_cols":0,"rows_kept":0,"cut":false,"hidden":false,"merged":[]}

{"sheet":"Hoja3","index":3,"n_rows":0,"n_cols":0,"rows_kept":0,"cut":false,"hidden":false,"merged":[]}